Workbook

Sheet PP 10.1
A2: Temp | B2: =233-273.15 -> -40.15 | C2: 'C
A3: Pressure | B3: 7 | C3: Mpa
A4: Ψ (vapor fraction) | B4: 0.8187096792
A5: liquid fraction | B5: =1-B4 -> 0.1812903208
A7: Compound | B7: zi | C7: Tc | D7: Pc | E7: ω | F7: Psat | G7: Ki | H7: Di | I7: xi | J7: Li | K7: yi | L7: Vi
A8: ethane | B8: 0.9 | C8: 190.6 | D8: 4.6 | E8: 0.011 | F8: =D8*10^(7/3*(E8+1)*(1-C8/($B$2+273.15))) -> 12.36047285 | G8: =F8/$B$3 -> 1.765781835 | H8: =B8*(1-G8)/(1+$B$4*(G8-1)) -> -0.4236162025 | I8: =B8/(1+$B$4*(G8-1)) -> 0.5531813148 | J8: =$B$5*I8 -> 0.100286418 | K8: =B8*G8/(1+$B$4*(G8-1)) -> 0.9767975172 | L8: =$B$4*K8 -> 0.799713582
A9: propane | B9: 0.05 | C9: 305.4 | D9: 4.88 | E9: 0.099 | F9: =D9*10^(7/3*(E9+1)*(1-C9/($B$2+273.15))) -> 0.7791220865 | G9: =F9/$B$3 -> 0.1113031552 | H9: =B9*(1-G9)/(1+$B$4*(G9-1)) -> 0.1631143466 | I9: =B9/(1+$B$4*(G9-1)) -> 0.1835432944 | J9: =$B$5*I9 -> 0.03327462272 | K9: =B9*G9/(1+$B$4*(G9-1)) -> 0.02042894778 | L9: =$B$4*K9 -> 0.01672537728
A10: n-butane | B10: 0.03 | C10: 369.8 | D10: 4.25 | E10: 0.152 | F10: 0.1122531074 | G10: 0.0160361582 | H10: 0.1518312147 | I10: 0.1543056851 | J10: 0.02797412715 | K10: 0.002474470378 | L10: 0.002025872849
A11: i-butane | B11: 0.02 | C11: 425.2 | D11: 3.8 | E11: 0.193 | F11: 0.01921132298 | G11: 0.002744474711 | H11: 0.1086706412 | I11: 0.1089697058 | J11: 0.01975515292 | K11: 0.0002990646017 | L11: 0.0002448470841
H12: =SUM(H8:H11) -> -1.564637309e-12

Sheet PP 10.4
A2: Temp | B2: 46.24941571 | C2: 'C | D2: =B2+273.15 -> 319.3994157 | E2: K
A3: Pressure | B3: 0.9
A4: Ψ (vapor fraction) | B4: 0.65
A5: liquid fraction | B5: =1-B4 -> 0.35
A7: Compound | B7: zi | C7: Tc | D7: Pc | E7: ω | F7: Psat | G7: Ki | H7: Di | I7: xi | J7: Li | K7: yi | L7: Vi
A8: ethane | B8: 0 | C8: 190.6 | D8: 4.6 | E8: 0.011 | F8: =D8*10^(7/3*(E8+1)*(1-C8/($B$2+273.15))) -> 41.11841909 | G8: =F8/$B$3 -> 45.68713232 | H8: =B8*(1-G8)/(1+$B$4*(G8-1)) -> 0 | I8: =B8/(1+$B$4*(G8-1)) -> 0 | J8: =$B$5*I8 -> 0 | K8: =B8*G8/(1+$B$4*(G8-1)) -> 0 | L8: =$B$4*K8 -> 0
A9: propane | B9: 0.15 | C9: 305.4 | D9: 4.88 | E9: 0.099 | F9: =D9*10^(7/3*(E9+1)*(1-C9/($B$2+273.15))) -> 6.321434911 | G9: =F9/$B$3 -> 7.023816567 | H9: =B9*(1-G9)/(1+$B$4*(G9-1)) -> -0.1838217923 | I9: =B9/(1+$B$4*(G9-1)) -> 0.03051583498 | J9: =$B$5*I9 -> 0.01068054224 | K9: =B9*G9/(1+$B$4*(G9-1)) -> 0.2143376273 | L9: =$B$4*K9 -> 0.1393194578
A10: n-butane | B10: 0.35 | C10: 369.8 | D10: 4.25 | E10: 0.152 | F10: 1.6003978 | G10: 1.778219778 | H10: -0.1808800442 | I10: 0.2324279713 | J10: 0.08134978995 | K10: 0.4133080155 | L10: 0.26865021
A11: i-butane | B11: 0.5 | C11: 425.2 | D11: 3.8 | E11: 0.193 | F11: 0.4546719146 | G11: 0.5051910162 | H11: 0.3647021162 | I11: 0.7370563755 | J11: 0.2579697314 | K11: 0.3723542593 | L11: 0.2420302686
H12: =SUM(H8:H11) -> 2.796829994e-07

Sheet HW 10.3
A2: Temp | B2: 30 | C2: 'C
A3: Press | B3: =5/1.01325*760 -> 3750.308414 | C3: mm Hg | F3: 'C | G3: K
E4: T bubble | F4: 21.31293488 | G4: =F4+273.15 -> 294.4629349
A5: Compound | B5: zi | C5: A | D5: B | E5: C | F5: Psat | G5: Ki | H5: yi = Kixi
A6: ethane | B6: 0.05 | C6: =VLOOKUP($A6,antoine_table[],2,0) -> 6.82915 | D6: =VLOOKUP($A6,antoine_table[],3,0) -> 663.72 | E6: =VLOOKUP($A6,antoine_table[],4,0) -> 256.681 | F6: =10^(C6-D6/(E6+$F$4)) -> 27644.9556 | G6: =F6/$B$3 -> 7.371381911 | H6: =G6*B6 -> 0.3685690956
A7: propane | B7: 0.1 | C7: =VLOOKUP($A7,antoine_table[],2,0) -> 6.80338 | D7: =VLOOKUP($A7,antoine_table[],3,0) -> 804 | E7: =VLOOKUP($A7,antoine_table[],4,0) -> 247.04 | F7: =10^(C7-D7/(E7+$F$4)) -> 6416.904376 | G7: =F7/$B$3 -> 1.711033779 | H7: =G7*B7 -> 0.1711033779
A8: n-butane | B8: 0.4 | C8: =VLOOKUP($A8,antoine_table[],2,0) -> 6.80776 | D8: =VLOOKUP($A8,antoine_table[],3,0) -> 935.77 | E8: =VLOOKUP($A8,antoine_table[],4,0) -> 238.789 | F8: =10^(C8-D8/(E8+$F$4)) -> 1622.015954 | G8: =F8/$B$3 -> 0.4325020172 | H8: 0.1730008069
A9: i-butane | B9: 0.45 | C9: =VLOOKUP($A9,antoine_table[],2,0) -> 6.91048 | D9: =VLOOKUP($A9,antoine_table[],3,0) -> 946.35 | E9: =VLOOKUP($A9,antoine_table[],4,0) -> 246.68 | F9: =10^(C9-D9/(E9+$F$4)) -> 2394.584634 | G9: =F9/$B$3 -> 0.6385033896 | H9: 0.2873265253
H10: =SUM(H6:H9) -> 0.9999998056
E14: T dew | F14: 39.54217823 | G14: =F14+273.15 -> 312.6921782
A15: Compound | B15: zi | C15: A | D15: B | E15: C | F15: Psat | G15: Ki | H15: xi=yi/Ki
A16: ethane | B16: 0.05 | C16: =VLOOKUP($A16,antoine_table[],2,0) -> 6.82915 | D16: =VLOOKUP($A16,antoine_table[],3,0) -> 663.72 | E16: =VLOOKUP($A16,antoine_table[],4,0) -> 256.681 | F16: =10^(C16-D16/(E16+$F$14)) -> 38774.13137 | G16: =F16/$B$3 -> 10.33891806 | H16: =B16/G16 -> 0.004836095976
A17: propane | B17: 0.1 | C17: =VLOOKUP($A17,antoine_table[],2,0) -> 6.80338 | D17: =VLOOKUP($A17,antoine_table[],3,0) -> 804 | E17: =VLOOKUP($A17,antoine_table[],4,0) -> 247.04 | F17: =10^(C17-D17/(E17+$F$14)) -> 9951.807959 | G17: =F17/$B$3 -> 2.653597214 | H17: =B17/G17 -> 0.03768469437
A18: n-butane | B18: 0.4 | C18: =VLOOKUP($A18,antoine_table[],2,0) -> 6.80776 | D18: =VLOOKUP($A18,antoine_table[],3,0) -> 935.77 | E18: =VLOOKUP($A18,antoine_table[],4,0) -> 238.789 | F18: 2790.525938 | G18: =F18/$B$3 -> 0.7440790544 | H18: 0.5375772879
A19: i-butane | B19: 0.45 | C19: =VLOOKUP($A19,antoine_table[],2,0) -> 6.91048 | D19: =VLOOKUP($A19,antoine_table[],3,0) -> 946.35 | E19: =VLOOKUP($A19,antoine_table[],4,0) -> 246.68 | F19: 4019.133594 | G19: =F19/$B$3 -> 1.071680819 | H19: 0.4199011421
H20: =SUM(H16:H19) -> 0.9999992203
A21: Pressure | B21: 5 | C21: Mpa
A22: Ψ (vapor fraction) | B22: 0.1733426797 | N22: Newton Raphson Method
A23: liquid fraction | B23: =1-B22 -> 0.8266573203
N24: Iteration | O24: Ψ | P24: ΣDi | Q24: Ψ'
A25: Compound | B25: zi | C25: Tc | D25: Pc | E25: ω | F25: Psat | G25: Ki | H25: Di | I25: xi | J25: Li | K25: yi | L25: Vi | N25: 0 | O25: 0.5 | P25: =SUM($B$26:$B$29*(1-$G$26:$G$29)/(1+O25*($G$26:$G$29-1))) -> 0.1515069904 | Q25: =SUM($B$26:$B$29*(1-$G$26:$G$29)^2/(1+O25*($G$26:$G$29-1))^2) -> 0.3198142011
A26: ethane | B26: 0.05 | C26: 305.4 | D26: 48.8 | E26: 0.099 | F26: =D26*10^(7/3*(E26+1)*(1-C26/($B$2+273.15))) -> 46.70755834 | G26: =F26/$B$21 -> 9.341511667 | H26: =B26*(1-G26)/(1+$B$22*(G26-1)) -> -0.1705175049 | I26: =B26/(1+$B$22*(G26-1)) -> 0.02044203877 | J26: =$B$23*I26 -> 0.01689856099 | K26: =B26*G26/(1+$B$22*(G26-1)) -> 0.1909595437 | L26: =$B$22*K26 -> 0.03310143901 | N26: 1 | O26: =O25-P25/Q25 -> 0.02626559467 | P26: =SUM($B$26:$B$29*(1-$G$26:$G$29)/(1+O26*($G$26:$G$29-1))) -> -0.2019677299 | Q26: =SUM($B$26:$B$29*(1-$G$26:$G$29)^2/(1+O26*($G$26:$G$29-1))^2) -> 2.560816514
A27: propane | B27: 0.1 | C27: 369.8 | D27: 42.49 | E27: 0.152 | F27: =D27*10^(7/3*(E27+1)*(1-C27/($B$2+273.15))) -> 10.89702652 | G27: =F27/$B$21 -> 2.179405303 | H27: =B27*(1-G27)/(1+$B$22*(G27-1)) -> -0.09792136213 | I27: =B27/(1+$B$22*(G27-1)) -> 0.08302604869 | J27: =$B$23*I27 -> 0.06863409093 | K27: =B27*G27/(1+$B$22*(G27-1)) -> 0.1809474108 | L27: =$B$22*K27 -> 0.03136590907 | N27: 2 | O27: =O26-P26/Q26 -> 0.105134084 | P27: =SUM($B$26:$B$29*(1-$G$26:$G$29)/(1+O27*($G$26:$G$29-1))) -> -0.06534311746 | Q27: =SUM($B$26:$B$29*(1-$G$26:$G$29)^2/(1+O27*($G$26:$G$29-1))^2) -> 1.192375341
A28: n-butane | B28: 0.4 | C28: 425.2 | D28: 37.97 | E28: 0.193 | F28: 2.875542408 | G28: 0.5751084816 | H28: =B28*(1-G28)/(1+$B$22*(G28-1)) -> 0.1834694704 | I28: =B28/(1+$B$22*(G28-1)) -> 0.4318030896 | J28: =$B$23*I28 -> 0.356953185 | K28: =B28*G28/(1+$B$22*(G28-1)) -> 0.2483336192 | L28: =$B$22*K28 -> 0.04304681501 | N28: 3 | O28: 0.1599348797 | P28: =SUM($B$26:$B$29*(1-$G$26:$G$29)/(1+O28*($G$26:$G$29-1))) -> -0.010809329 | Q28: =SUM($B$26:$B$29*(1-$G$26:$G$29)^2/(1+O28*($G$26:$G$29-1))^2) -> 0.8361327961
A29: i-butane | B29: 0.45 | C29: 408.1 | D29: 36.48 | E29: 0.177 | F29: 4.085818129 | G29: 0.8171636258 | H29: =B29*(1-G29)/(1+$B$22*(G29-1)) -> 0.08496933087 | I29: =B29/(1+$B$22*(G29-1)) -> 0.4647288115 | J29: =$B$23*I29 -> 0.384171474 | K29: =B29*G29/(1+$B$22*(G29-1)) -> 0.3797594806 | L29: =$B$22*K29 -> 0.065828526 | N29: 4 | O29: 0.1728626455 | P29: =SUM($B$26:$B$29*(1-$G$26:$G$29)/(1+O29*($G$26:$G$29-1))) -> -0.0003738133974 | Q29: =SUM($B$26:$B$29*(1-$G$26:$G$29)^2/(1+O29*($G$26:$G$29-1))^2) -> 0.7795658579
H30: =SUM(H26:H29) -> -6.575437207e-08 | N30: 5 | O30: =O29-P29/Q29 -> 0.1733421604 | P30: =SUM($B$26:$B$29*(1-$G$26:$G$29)/(1+O30*($G$26:$G$29-1))) -> -4.695458283e-07 | Q30: =SUM($B$26:$B$29*(1-$G$26:$G$29)^2/(1+O30*($G$26:$G$29-1))^2) -> 0.7776090231
N31: 6 | O31: 0.1733427642 | P31: =SUM($B$26:$B$29*(1-$G$26:$G$29)/(1+O31*($G$26:$G$29-1))) -> -7.421424586e-13 | Q31: =SUM($B$26:$B$29*(1-$G$26:$G$29)^2/(1+O31*($G$26:$G$29-1))^2) -> 0.777606565
N32: 7 | O32: =O31-P31/Q31 -> 0.1733427642 | P32: =SUM($B$26:$B$29*(1-$G$26:$G$29)/(1+O32*($G$26:$G$29-1))) -> 2.775557562e-17 | Q32: =SUM($B$26:$B$29*(1-$G$26:$G$29)^2/(1+O32*($G$26:$G$29-1))^2) -> 0.7776065649
N33: 8 | O33: 0.1733427642 | P33: =SUM($B$26:$B$29*(1-$G$26:$G$29)/(1+O33*($G$26:$G$29-1))) -> -2.775557562e-17 | Q33: =SUM($B$26:$B$29*(1-$G$26:$G$29)^2/(1+O33*($G$26:$G$29-1))^2) -> 0.7776065649
N34: 9 | O34: 0.1733427642 | P34: =SUM($B$26:$B$29*(1-$G$26:$G$29)/(1+O34*($G$26:$G$29-1))) -> 2.775557562e-17 | Q34: =SUM($B$26:$B$29*(1-$G$26:$G$29)^2/(1+O34*($G$26:$G$29-1))^2) -> 0.7776065649
N35: 10 | O35: 0.1733427642 | P35: =SUM($B$26:$B$29*(1-$G$26:$G$29)/(1+O35*($G$26:$G$29-1))) -> -2.775557562e-17 | Q35: =SUM($B$26:$B$29*(1-$G$26:$G$29)^2/(1+O35*($G$26:$G$29-1))^2) -> 0.7776065649

Sheet HW 10.5
A2: Temp | B2: 37 | C2: 'C
A3: Press | B3: =600/101.325*760 -> 4500.370096 | C3: mm Hg
A4: Ψ (vapor fraction) | B4: 0.7231036568
A5: liquid fraction | B5: =1-B4 -> 0.2768963432
A7: Compound | B7: zi | C7: A | D7: B | E7: C | F7: Psat | G7: Ki | H7: Di | I7: xi | J7: Li | K7: yi | L7: Vi
A8: propane | B8: 0.5 | C8: =VLOOKUP($A8,antoine_table[],2,0) -> 6.80338 | D8: =VLOOKUP($A8,antoine_table[],3,0) -> 804 | E8: =VLOOKUP($A8,antoine_table[],4,0) -> 247.04 | F8: =10^(C8-D8/(E8+$B$2)) -> 9392.749904 | G8: =F8/$B$3 -> 2.087106105 | H8: =B8*(1-G8)/(1+$B$4*(G8-1)) -> -0.3043256112 | I8: =B8/(1+$B$4*(G8-1)) -> 0.2799410377 | J8: =$B$5*I8 -> 0.07751464963 | K8: =B8*G8/(1+$B$4*(G8-1)) -> 0.5842666489 | L8: =$B$4*K8 -> 0.4224853504
A9: n-butane | B9: 0.5 | C9: =VLOOKUP($A9,antoine_table[],2,0) -> 6.80776 | D9: =VLOOKUP($A9,antoine_table[],3,0) -> 935.77 | E9: =VLOOKUP($A9,antoine_table[],4,0) -> 238.789 | F9: =10^(C9-D9/(E9+$B$2)) -> 2598.334213 | G9: =F9/$B$3 -> 0.5773601188 | H9: 0.3043256444 | I9: =B9/(1+$B$4*(G9-1)) -> 0.7200589864 | J9: =$B$5*I9 -> 0.1993817002 | K9: =B9*G9/(1+$B$4*(G9-1)) -> 0.4157333419 | L9: =$B$4*K9 -> 0.3006182998
H10: =SUM(H8:H9) -> 3.324526915e-08

Sheet HW 10.10
A1: temperature | B1: 22
A2: Pressure | B2: =0.1/0.101325*760 -> 750.0616827
B4: hexane | C4: 1-butanol | D4: chloroform | E4: ethanol | F4: toluene
A5: A | B5: =TableLookup(B$4,antoine_table[],$A5,0) -> 6.91058 | C5: =TableLookup(C$4,antoine_table[],$A5,0) -> 7.81028 | D5: =TableLookup(D$4,antoine_table[],$A5,0) -> 6.95465 | E5: =TableLookup(E$4,antoine_table[],$A5,0) -> 8.1122 | F5: =TableLookup(F$4,antoine_table[],$A5,0) -> 6.95087
A6: B | B6: =TableLookup(B$4,antoine_table[],$A6,0) -> 1189.64 | C6: =TableLookup(C$4,antoine_table[],$A6,0) -> 1522.56 | D6: =TableLookup(D$4,antoine_table[],$A6,0) -> 1170.966 | E6: =TableLookup(E$4,antoine_table[],$A6,0) -> 1592.864 | F6: =TableLookup(F$4,antoine_table[],$A6,0) -> 1342.31
A7: C | B7: =TableLookup(B$4,antoine_table[],$A7,0) -> 226.28 | C7: =TableLookup(C$4,antoine_table[],$A7,0) -> 191.95 | D7: =TableLookup(D$4,antoine_table[],$A7,0) -> 226.232 | E7: =TableLookup(E$4,antoine_table[],$A7,0) -> 226.184 | F7: =TableLookup(F$4,antoine_table[],$A7,0) -> 219.187
A8: Tmin | B8: =TableLookup(B$4,antoine_table[],$A8,0) -> -30 | C8: =TableLookup(C$4,antoine_table[],$A8,0) -> 30 | D8: =TableLookup(D$4,antoine_table[],$A8,0) -> -10 | E8: =TableLookup(E$4,antoine_table[],$A8,0) -> 20 | F8: =TableLookup(F$4,antoine_table[],$A8,0) -> -27
A9: Tmax | B9: =TableLookup(B$4,antoine_table[],$A9,0) -> 170 | C9: =TableLookup(C$4,antoine_table[],$A9,0) -> 70 | D9: =TableLookup(D$4,antoine_table[],$A9,0) -> 60 | E9: =TableLookup(E$4,antoine_table[],$A9,0) -> 93 | F9: =TableLookup(F$4,antoine_table[],$A9,0) -> 111
A10: Psat (mm Hg) | B10: =10^(B5-B6/(B7+$B$1)) -> 131.5389295 | C10: =10^(C5-C6/(C7+$B$1)) -> 4.941410432 | D10: 172.7530765 | E10: 49.44508062 | F10: 24.29055114
A11: yi | B11: =B10/$B$2 -> 0.1753708162 | C11: =C10/$B$2 -> 0.006588005422 | D11: 0.2303184931 | E11: 0.06592135255 | F11: 0.03238473809
A12: Yi | B12: =500/1000000 -> 0.0005 | C12: =100/1000000 -> 0.0001 | D12: =50/1000000 -> 5e-05 | E12: =1000/1000000 -> 0.001 | F12: =200/1000000 -> 0.0002
A13: time | B13: ? | C13: ? | D13: ? | E13: ? | F13: ?

Sheet Antoine Equation
B1: log10(Psat[mmHg])=A-B/(T[oC]+C) | E1: T=B/(A-log10(P)) - C | K1: space 1 | L1: space 2 | M1: space 3 | N1: space 4 | O1: space 5 | P1: space 6 | Q1: space 7 | R1: space 8 | S1: space 9 | T1: space 10 | U1: Compound | V1: A | W1: B | X1: C | Y1: Tmin | Z1: Tmax | AA1: ω | AB1: Tc | AC1: Pc
B2: P = Vapor Pressure (mm Hg) | J2: Acetone C3H6O 14.3145 2756.22 228.060 -26 — 77 29.10 56.2 | K2: =FIND(" ",J2) -> 8 | L2: =FIND(" ",$J2,K2+1) -> 14 | M2: 22 | N2: 30 | O2: 38 | P2: 42 | Q2: 44 | R2: 47 | S2: 53 | U2: methanol | V2: 8.0724 | W2: 1574.99 | X2: 238.87 | Y2: 15 | Z2: 84
B3: T = Temperature ('C) | J3: Acetic_acid C2H4O2 15.0717 3580.80 224.650 24 — 142 23.70 117.9 | K3: 12 | L3: =FIND(" ",$J3,K3+1) -> 19 | M3: 27 | N3: 35 | O3: 43 | P3: 46 | Q3: 48 | R3: 52 | S3: 58 | U3: ethanol | V3: 8.1122 | W3: 1592.864 | X3: 226.184 | Y3: 20 | Z3: 93
B4: A/B/C = Constants | J4: Acetonitrile* C2H3N 14.8950 3413.10 250.523 -27 — 81 30.19 81.6 | K4: 14 | L4: =FIND(" ",$J4,K4+1) -> 20 | M4: 28 | N4: 36 | O4: 44 | P4: 48 | Q4: 50 | R4: 53 | S4: 59 | U4: 1-propanol | V4: 7.74416 | W4: 1437.686 | X4: 198.463 | Y4: 60 | Z4: 106
J5: Benzene C6H6 13.7819 2726.81 217.572 6 — 104 30.72 80.0 | K5: 8 | L5: =FIND(" ",$J5,K5+1) -> 13 | M5: 21 | N5: 29 | O5: 37 | P5: 39 | Q5: 41 | R5: 45 | S5: 51 | U5: 1-propanol | V5: 8.37895 | W5: 1788.02 | X5: 227.438 | Y5: -15 | Z5: 98
B6: Compound | C6: Water | J6: iso-Butane C4H10 13.8254 2181.79 248.870 -83 — 7 21.30 -11.9 | K6: 11 | L6: =FIND(" ",$J6,K6+1) -> 17 | M6: 25 | N6: 33 | O6: 41 | P6: 45 | Q6: 47 | R6: 49 | S6: 55 | U6: 2-propanol | V6: 8.87829 | W6: 2010.33 | X6: 252.636 | Y6: -26 | Z6: 83
B7: A | C7: =TableLookup(C6,antoine_table[],"A",0) -> 8.07131 | J7: n-Butane C4H10 13.6608 2154.70 238.789 -73 — 19 22.44 -0.5 | K7: 9 | L7: =FIND(" ",$J7,K7+1) -> 15 | M7: 23 | N7: 31 | O7: 39 | P7: 43 | Q7: 45 | R7: 48 | S7: 54 | U7: 1-butanol | V7: 7.81028 | W7: 1522.56 | X7: 191.95 | Y7: 30 | Z7: 70
B8: B | C8: =TableLookup(C6,antoine_table[],"B",0) -> 1730.63 | J8: 1-Butanol C4H10O 15.3144 3212.43 182.739 37 — 138 43.29 117.6 | K8: 10 | L8: =FIND(" ",$J8,K8+1) -> 17 | M8: 25 | N8: 33 | O8: 41 | P8: 44 | Q8: 46 | R8: 50 | S8: 56 | U8: 1-butanol | V8: 7.75328 | W8: 1506.07 | X8: 191.593 | Y8: 70 | Z8: 120
B9: C | C9: =TableLookup(C6,antoine_table[],"C",0) -> 233.426 | J9: 2-Butanol* C4H10O 15.1989 3026.03 186.500 25 — 120 40.75 99.5 | K9: 11 | L9: =FIND(" ",$J9,K9+1) -> 18 | M9: 26 | N9: 34 | O9: 42 | P9: 45 | Q9: 47 | R9: 51 | S9: 57 | U9: 1-butanol | V9: 7.36366 | W9: 1305.198 | X9: 173.427 | Y9: 89 | Z9: 126
B10: Tmin ('C) | C10: =TableLookup(C6,antoine_table[],"Tmin",0) -> 1 | J10: iso-Butanol C4H10O 14.6047 2740.95 166.670 30 — 128 41.82 107.8 | K10: 12 | L10: =FIND(" ",$J10,K10+1) -> 19 | M10: 27 | N10: 35 | O10: 43 | P10: 46 | Q10: 48 | R10: 52 | S10: 58 | U10: 2-butanol | V10: 7.20131 | W10: 1157 | X10: 168.279 | Y10: 72 | Z10: 107
B11: Tmax ('C) | C11: =TableLookup(C6,antoine_table[],"Tmax",0) -> 100 | J11: tert-Butanol C4H10O 14.8445 2658.29 177.650 10 — 101 39.07 82.3 | K11: 13 | L11: =FIND(" ",$J11,K11+1) -> 20 | M11: 28 | N11: 36 | O11: 44 | P11: 47 | Q11: 49 | R11: 53 | S11: 59 | U11: 1-octanol | V11: 8.366045695 | W11: 2170.240258 | X11: 205.9214296 | Y11: 55 | Z11: 150
B12: T ('C) | C12: 125 | J12: Carbon_tetrachloride CCl4 14.0572 2914.23 232.148 -14 — 101 29.82 76.6 | K12: 21 | L12: =FIND(" ",$J12,K12+1) -> 26 | M12: 34 | N12: 42 | O12: 50 | P12: 54 | Q12: 56 | R12: 60 | S12: 66 | U12: ethylene glycol | V12: 7.251620842 | W12: 1448.565085 | X12: 134.1182017 | Y12: 80 | Z12: 200
B13: P (mm Hg) | C13: =10^(C7-C8/(C9+C12)) -> 1749.417774 | D13: =C13/760*101.325 -> 233.236521 | J13: Chlorobenzene C6H5Cl 13.8635 3174.78 211.700 29 — 159 35.19 131.7 | K13: 14 | L13: =FIND(" ",$J13,K13+1) -> 21 | M13: 29 | N13: 37 | O13: 45 | P13: 48 | Q13: 50 | R13: 54 | S13: 60 | U13: methane | V13: 6.6438 | W13: 395.74 | X13: 266.681 | Y13: -182 | Z13: -158 | AA13: 0.011 | AB13: 190.6 | AC13: 4.6
J14: 1-Chlorobutane C4H9Cl 13.7965 2723.73 218.265 -17 — 79 30.39 78.5 | K14: 15 | L14: =FIND(" ",$J14,K14+1) -> 22 | M14: 30 | N14: 38 | O14: 46 | P14: 50 | Q14: 52 | R14: 55 | S14: 61 | U14: ethane | V14: 6.82915 | W14: 663.72 | X14: 256.681 | Y14: -143 | Z14: -84 | AA14: 0.099 | AB14: 305.4 | AC14: 4.88
J15: Chloroform CHCl3 13.7324 2548.74 218.552 -23 — 84 29.24 61.1 | K15: 11 | L15: =FIND(" ",$J15,K15+1) -> 17 | M15: 25 | N15: 33 | O15: 41 | P15: 45 | Q15: 47 | R15: 50 | S15: 56 | U15: propane | V15: 6.80338 | W15: 804 | X15: 247.04 | Y15: -108 | Z15: -35.65 | AA15: 0.152 | AB15: 369.8 | AC15: 4.25
J16: Cyclohexane C6H12 13.6568 2723.44 220.618 9 — 105 29.97 80.7 | K16: 12 | L16: =FIND(" ",$J16,K16+1) -> 18 | M16: 26 | N16: 34 | O16: 42 | P16: 44 | Q16: 46 | R16: 50 | S16: 56 | U16: n-butane | V16: 6.80776 | W16: 935.77 | X16: 238.789 | Y16: -78 | Z16: 19 | AA16: 0.193 | AB16: 425.2 | AC16: 3.8
B17: Compound | C17: Water | J17: Cyclopentane C5H10 13.9727 2653.90 234.510 -35 — 71 27.30 49.2 | K17: 13 | L17: =FIND(" ",$J17,K17+1) -> 19 | M17: 27 | N17: 35 | O17: 43 | P17: 47 | Q17: 49 | R17: 52 | S17: 58 | U17: n-pentane | V17: 6.85296 | W17: 1064.84 | X17: 232.012 | Y17: -50 | Z17: 58
B18: A | C18: =VLOOKUP($C$17,U:Z,2,0) -> 8.07131 | J18: n-Decane C10H22 13.9748 3442.76 193.858 65 — 203 38.75 174.1 | K18: 9 | L18: =FIND(" ",$J18,K18+1) -> 16 | M18: 24 | N18: 32 | O18: 40 | P18: 43 | Q18: 45 | R18: 49 | S18: 55 | U18: n-pentane | V18: 6.87632 | W18: 1075.78 | X18: 233.205 | Y18: -50 | Z18: 58
B19: B | C19: =VLOOKUP($C$17,U:Z,3,0) -> 1730.63 | J19: Dichloromethane CH2Cl2 13.9891 2463.93 223.240 -38 — 60 28.06 39.7 | K19: 16 | L19: =FIND(" ",$J19,K19+1) -> 23 | M19: 31 | N19: 39 | O19: 47 | P19: 51 | Q19: 53 | R19: 56 | S19: 62 | U19: n-hexane | V19: 6.87601 | W19: 1171.17 | X19: 224.408 | Y19: -25 | Z19: 92
B20: C | C20: =VLOOKUP($C$17,U:Z,4,0) -> 233.426 | J20: Diethyl_ether C4H10O 14.0735 2511.29 231.200 -43 — 55 26.52 34.4 | K20: 14 | L20: =FIND(" ",$J20,K20+1) -> 21 | M20: 29 | N20: 37 | O20: 45 | P20: 49 | Q20: 51 | R20: 54 | S20: 60 | U20: hexane | V20: 6.91058 | W20: 1189.64 | X20: 226.28 | Y20: -30 | Z20: 170
B21: Tmin ('C) | C21: =VLOOKUP($C$17,U:Z,5,0) -> 1 | J21: 1,4-Dioxane C4H8O2 15.0967 3579.78 240.337 20 — 105 34.16 101.3 | K21: 12 | L21: =FIND(" ",$J21,K21+1) -> 19 | M21: 27 | N21: 35 | O21: 43 | P21: 46 | Q21: 48 | R21: 52 | S21: 58 | U21: n-heptane | V21: 6.89677 | W21: 1264.9 | X21: 216.544 | Y21: -2 | Z21: 123
B22: Tmax ('C) | C22: =VLOOKUP($C$17,U:Z,6,0) -> 100 | J22: n-Eicosane C20H42 14.4575 4680.46 132.100 208 — 379 57.49 343.6 | K22: 11 | L22: =FIND(" ",$J22,K22+1) -> 18 | M22: 26 | N22: 34 | O22: 42 | P22: 46 | Q22: 48 | R22: 52 | S22: 58 | U22: heptane | V22: 6.89386 | W22: 1264.37 | X22: 216.64 | Y22: -3 | Z22: 127
B23: P (mm Hg) | C23: 760 | J23: Ethanol C2H6O 16.8958 3795.17 230.918 3 — 96 38.56 78.2 | K23: 8 | L23: =FIND(" ",$J23,K23+1) -> 14 | M23: 22 | N23: 30 | O23: 38 | P23: 40 | Q23: 42 | R23: 45 | S23: 51 | U23: n-octane | V23: 6.91868 | W23: 1351.99 | X23: 209.155 | Y23: 19 | Z23: 152
B24: T ('C) | C24: =C19/(C18-LOG10(C23))-C20 -> 99.99682974 | J24: Ethylbenzene C8H10 13.9726 3259.93 212.300 33 — 163 35.57 136.2 | K24: 13 | L24: =FIND(" ",$J24,K24+1) -> 19 | M24: 27 | N24: 35 | O24: 43 | P24: 46 | Q24: 48 | R24: 52 | S24: 58 | U24: n-nonane | V24: 6.93893 | W24: 1431.82 | X24: 202.11 | Y24: 39 | Z24: 178
J25: Ethylene_glycol* C2H6O2 15.7567 4187.46 178.650 100 — 222 50.73 197.3 | K25: 17 | L25: =FIND(" ",$J25,K25+1) -> 24 | M25: 32 | N25: 40 | O25: 48 | P25: 52 | Q25: 54 | R25: 58 | S25: 64 | U25: n-decane | V25: 6.94363 | W25: 1495.17 | X25: 193.858 | Y25: 58 | Z25: 203
J26: n-Heptane C7H16 13.8622 2910.26 216.432 4 — 123 31.77 98.4 | K26: 10 | L26: =FIND(" ",$J26,K26+1) -> 16 | M26: 24 | N26: 32 | O26: 40 | P26: 42 | Q26: 44 | R26: 48 | S26: 54 | U26: decane | V26: 7.44 | W26: 1843.12 | X26: 230.22 | Y26: 17 | Z26: 174
J27: n-Hexane C6H14 13.8193 2696.04 224.317 -19 — 92 28.85 68.7 | K27: 9 | L27: =FIND(" ",$J27,K27+1) -> 15 | M27: 23 | N27: 31 | O27: 39 | P27: 43 | Q27: 45 | R27: 48 | S27: 54 | U27: cyclohexane | V27: 7.264753377 | W27: 1434.148339 | X27: 246.7206925 | Y27: 6.7 | Z27: 80.7
J28: Methanol CH4O 16.5785 3638.27 239.500 -11 — 83 35.21 64.7 | K28: 9 | L28: =FIND(" ",$J28,K28+1) -> 14 | M28: 22 | N28: 30 | O28: 38 | P28: 42 | Q28: 44 | R28: 47 | S28: 53 | U28: cyclohexane | V28: 6.85146 | W28: 1206.47 | X28: 223.136 | Y28: 7 | Z28: 81
J29: Methyl_acetate C3H6O2 14.2456 2662.78 219.690 -23 — 78 30.32 56.9 | K29: 15 | L29: =FIND(" ",$J29,K29+1) -> 22 | M29: 30 | N29: 38 | O29: 46 | P29: 50 | Q29: 52 | R29: 55 | S29: 61 | U29: methylcyclohexane | V29: 7.1161 | W29: 1444.59 | X29: 240.184 | Y29: -3 | Z29: 100
J30: Methyl_ethyl_ketone C4H8O 14.1334 2838.24 218.690 -8 — 103 31.30 79.6 | K30: 20 | L30: =FIND(" ",$J30,K30+1) -> 26 | M30: 34 | N30: 42 | O30: 50 | P30: 53 | Q30: 55 | R30: 59 | S30: 65 | U30: i-pentane | V30: 8.1122 | W30: 1592.864 | X30: 226.184 | Y30: 20 | Z30: 93
J31: Nitromethane* CH3NO2 14.7513 3331.70 227.600 56 — 146 33.99 101.2 | K31: 14 | L31: =FIND(" ",$J31,K31+1) -> 21 | M31: 29 | N31: 37 | O31: 45 | P31: 48 | Q31: 50 | R31: 54 | S31: 60 | U31: toluene | V31: 6.95087 | W31: 1342.31 | X31: 219.187 | Y31: -27 | Z31: 111
J32: n-Nonane C9H20 13.9854 3311.19 202.694 46 — 178 36.91 150.8 | K32: 9 | L32: =FIND(" ",$J32,K32+1) -> 15 | M32: 23 | N32: 31 | O32: 39 | P32: 42 | Q32: 44 | R32: 48 | S32: 54 | U32: benzene | V32: 6.87987 | W32: 1196.76 | X32: 219.161 | Y32: 8 | Z32: 80
J33: iso-Octane C8H18 13.6703 2896.31 220.767 2 — 125 30.79 99.2 | K33: 11 | L33: =FIND(" ",$J33,K33+1) -> 17 | M33: 25 | N33: 33 | O33: 41 | P33: 43 | Q33: 45 | R33: 49 | S33: 55 | U33: m-xylene | V33: 7.00909 | W33: 1462.266 | X33: 215.11 | Y33: 29 | Z33: 166
J34: n-Octane C8H18 13.9346 3123.13 209.635 26 — 152 34.41 125.6 | K34: 9 | L34: =FIND(" ",$J34,K34+1) -> 15 | M34: 23 | N34: 31 | O34: 39 | P34: 42 | Q34: 44 | R34: 48 | S34: 54 | U34: o-xylene | V34: 7.00154 | W34: 1476.393 | X34: 213.872 | Y34: 63 | Z34: 145
J35: n-Pentane C5H12 13.7667 2451.88 232.014 -45 — 58 25.79 36.0 | K35: 10 | L35: =FIND(" ",$J35,K35+1) -> 16 | M35: 24 | N35: 32 | O35: 40 | P35: 44 | Q35: 46 | R35: 49 | S35: 55 | U35: p-xylene | V35: 6.99053 | W35: 1453.43 | X35: 215.31 | Y35: 27 | Z35: 166
J36: Phenol C6H6O 14.4387 3507.80 175.400 80 — 208 46.18 181.8 | K36: 7 | L36: =FIND(" ",$J36,K36+1) -> 13 | M36: 21 | N36: 29 | O36: 37 | P36: 40 | Q36: 42 | R36: 46 | S36: 52 | U36: acetone | V36: 7.6313 | W36: 1566.69 | X36: 273.419 | Y36: 57 | Z36: 205
J37: 1-Propanol C3H8O 16.1154 3483.67 205.807 20 — 116 41.44 97.2 | K37: 11 | L37: =FIND(" ",$J37,K37+1) -> 17 | M37: 25 | N37: 33 | O37: 41 | P37: 44 | Q37: 46 | R37: 50 | S37: 56 | U37: acetone | V37: 7.11714 | W37: 1210.595 | X37: 229.664 | Y37: -13 | Z37: 55
J38: 2-Propanol C3H8O 16.6796 3640.20 219.610 8 — 100 39.85 82.2 | K38: 11 | L38: =FIND(" ",$J38,K38+1) -> 17 | M38: 25 | N38: 33 | O38: 41 | P38: 43 | Q38: 45 | R38: 49 | S38: 55 | U38: acrolein | V38: 7.06691 | W38: 1204.95 | X38: 235.35 | Y38: -65 | Z38: 53
J39: Toluene C7H8 13.9320 3056.96 217.625 13 — 136 33.18 110.6 | K39: 8 | L39: =FIND(" ",$J39,K39+1) -> 13 | M39: 21 | N39: 29 | O39: 37 | P39: 40 | Q39: 42 | R39: 46 | S39: 52 | U39: ethyl acetate | V39: 7.10179 | W39: 1244.95 | X39: 217.881 | Y39: 16 | Z39: 76
J40: Water H2O 16.3872 3885.70 230.170 0 — 200 40.66 100.0 | K40: 6 | L40: =FIND(" ",$J40,K40+1) -> 10 | M40: 18 | N40: 26 | O40: 34 | P40: 36 | Q40: 38 | R40: 42 | S40: 48 | U40: 1,4-dioxane | V40: 7.43155 | W40: 1554.679 | X40: 240.337 | Y40: 20 | Z40: 105
J41: o-Xylene C8H10 14.0415 3358.79 212.041 40 — 172 36.24 144.4 | K41: 9 | L41: =FIND(" ",$J41,K41+1) -> 15 | M41: 23 | N41: 31 | O41: 39 | P41: 42 | Q41: 44 | R41: 48 | S41: 54 | U41: 2-butanone | V41: 7.280662108 | W41: 1434.201069 | X41: 246.4990457 | Y41: -6.5 | Z41: 80
J42: m-Xylene C8H10 14.1387 3381.81 216.120 35 — 166 35.66 139.1 | K42: 9 | L42: =FIND(" ",$J42,K42+1) -> 15 | M42: 23 | N42: 31 | O42: 39 | P42: 42 | Q42: 44 | R42: 48 | S42: 54 | U42: 2-butanone | V42: 7.06356 | W42: 1261.339 | X42: 221.969 | Y42: 43 | Z42: 88
J43: p-Xylene C8H10 14.0579 3331.45 214.627 35 — 166 35.67 138.3 | K43: 9 | L43: =FIND(" ",$J43,K43+1) -> 15 | M43: 23 | N43: 31 | O43: 39 | P43: 42 | Q43: 44 | R43: 48 | S43: 54 | U43: 3-pentanone | V43: 7.23064 | W43: 1477.021 | X43: 237.517 | Y43: 36 | Z43: 102
U44: water | V44: 8.07131 | W44: 1730.63 | X44: 233.426 | Y44: 1 | Z44: 100
U45: acetonitrile | V45: 7.33986 | W45: 1482.29 | X45: 250.523 | Y45: -27 | Z45: 82
U46: Triethylamine | V46: 5.85879 | W46: 695.666 | X46: 144.832 | Y46: 50 | Z46: 95
U47: acetic acid | V47: 8.021 | W47: 1936.01 | X47: 258.451 | Y47: 18 | Z47: 118
U48: acetic acid | V48: 8.26735 | W48: 2258.222 | X48: 300.97 | Y48: 118 | Z48: 227
U49: chloroform | V49: 6.95465 | W49: 1170.966 | X49: 226.232 | Y49: -10 | Z49: 60
U50: dichloromethane | V50: 7.0803 | W50: 1138.91 | X50: 231.45 | Y50: -44 | Z50: 59
U51: dichoromethane | V51: 7.40916 | W51: 1325.938 | X51: 252.616 | Y51: -40 | Z51: 40
U52: tetrachloromethane | V52: 6.84093 | W52: 1177.91 | X52: 220.576 | Y52: -20 | Z52: 77
U53: 1,2-dichloroethane | V53: 7.0253 | W53: 1271.254 | X53: 222.927 | Y53: -31 | Z53: 99
U54: Benzyl chloride | V54: 7.597156018 | W54: 1961.468475 | X54: 236.5113668 | Y54: 22 | Z54: 180
U55: nitroethane | V55: 7.194583976 | W55: 1446.509074 | X55: 220.794784 | Y55: 1.5 | Z55: 94
U56: Biphenyl | V56: 13.5354 | W56: 4993.37 | X56: 296.072 | Y56: 20 | Z56: 40
U57: Naphthalene | V57: 8.62233 | W57: 2165.72 | X57: 198.284 | Y57: 20 | Z57: 40
U58: i-butane | V58: 6.91048 | W58: 946.35 | X58: 246.68 | Y58: -87 | Z58: 7

Sheet Raoult Bubble & Dew Curves
S1: x1 | AA1: y1
A2: Operating P (mm Hg) | B2: 760 | S2: x5 | T2: x4 | U2: x3 | V2: x2 | W2: x | X2: c | AA2: x5 | AB2: x4 | AC2: x3 | AD2: x2 | AE2: x | AF2: c
S3: =LINEST(A14:A62,(F14:F62)^{1,2,3,4,5},TRUE,FALSE) -> -1.165711072 | T3: 5.671234165 | U3: -14.12900314 | V3: 26.40569854 | W3: -47.29694482 | X3: 110.6140216 | AA3: =LINEST(A14:A62,(G14:G62)^{1,2,3,4,5},TRUE,FALSE) -> -7.42308978 | AB3: 10.71416412 | AC3: -10.14265269 | AD3: -3.244662913 | AE3: -20.41625843 | AF3: 110.6189147
B4: Compound 1 | C4: Compound 2 | T4: =5*S3 -> -5.828555358 | U4: =4*T3 -> 22.68493666 | V4: =3*U3 -> -42.38700941 | W4: =2*V3 -> 52.81139708 | X4: =W3 -> -47.29694482 | AB4: =5*AA3 -> -37.1154489 | AC4: =4*AB3 -> 42.85665649 | AD4: =3*AC3 -> -30.42795806 | AE4: =2*AD3 -> -6.489325825 | AF4: =AE3 -> -20.41625843
B5: Benzene | C5: Toluene
A6: A | B6: =TableLookup(B5,antoine_table[],"A",0) -> 6.87987 | C6: =TableLookup(C5,antoine_table[],"A",0) -> 6.95087 | S6: x | T6: T(x1) | U6: T | V6: y(x1)-T | W6: dy(x1) | X6: dy(T) | Y6: dy(x1)-dy(T) | AA6: x(y1) | AB6: T(y1) | AC6: T | AD6: y(y1)-T | AE6: dy(y1) | AF6: dy(T) | AG6: dy(y1)-dy(T)
A7: B | B7: =TableLookup(B5,antoine_table[],"B",0) -> 1196.76 | C7: =TableLookup(C5,antoine_table[],"B",0) -> 1342.31 | S7: 0.5 | T7: =$S$3*S7^5+$T$3*S7^4+$U$3*S7^3+$V$3*S7^2+$W$3*S7+$X$3 -> 92.11887205 | U7: =$K$23 -> 100 | V7: =T7-U7 -> -7.881127949 | W7: =$T$4*S7^4+$U$4*S7^3+$V$4*S7^2+$W$4*S7+$X$4 -> -29.01666626 | X7: 0 | Y7: =W7-X7 -> -29.01666626 | AA7: 0.5 | AB7: =$AA$3*AA7^5+$AB$3*AA7^4+$AC$3*AA7^3+$AD$3*AA7^2+$AE$3*AA7+$AF$3 -> 98.76945187 | AC7: =$K$23 -> 100 | AD7: =AB7-AC7 -> -1.230548134 | AE7: =$AB$4*AA7^4+$AC$4*AA7^3+$AD$4*AA7^2+$AE$4*AA7+$AF$4 -> -28.23054435 | AF7: 0 | AG7: =AE7-AF7 -> -28.23054435
A8: C | B8: =TableLookup(B5,antoine_table[],"C",0) -> 219.161 | C8: =TableLookup(C5,antoine_table[],"C",0) -> 219.187 | S8: =S7-V7/Y7 -> 0.2283930593 | T8: =$S$3*S8^5+$T$3*S8^4+$U$3*S8^3+$V$3*S8^2+$W$3*S8+$X$3 -> 101.035516 | U8: =$K$23 -> 100 | V8: =T8-U8 -> 1.035515961 | W8: =$T$4*S8^4+$U$4*S8^3+$V$4*S8^2+$W$4*S8+$X$4 -> -37.19183516 | X8: 0 | Y8: =W8-X8 -> -37.19183516 | AA8: =AA7-AD7/AG7 -> 0.4564107543 | AB8: =$AA$3*AA8^5+$AB$3*AA8^4+$AC$3*AA8^3+$AD$3*AA8^2+$AE$3*AA8+$AF$3 -> 99.97840898 | AC8: =$K$23 -> 100 | AD8: =AB8-AC8 -> -0.02159102361 | AE8: =$AB$4*AA8^4+$AC$4*AA8^3+$AD$4*AA8^2+$AE$4*AA8+$AF$4 -> -27.2524843 | AF8: 0 | AG8: =AE8-AF8 -> -27.2524843
A9: Operating BP | B9: =B7/(B6-LOG10($B$2))-B8 -> 80.099595 | C9: =C7/(C6-LOG10($B$2))-C8 -> 110.614326 | S9: =S8-V8/Y8 -> 0.2562356209 | T9: =$S$3*S9^5+$T$3*S9^4+$U$3*S9^3+$V$3*S9^2+$W$3*S9+$X$3 -> 100.0140299 | U9: =$K$23 -> 100 | V9: =T9-U9 -> 0.01402985854 | W9: =$T$4*S9^4+$U$4*S9^3+$V$4*S9^2+$W$4*S9+$X$4 -> -36.19125839 | X9: 0 | Y9: =W9-X9 -> -36.19125839 | AA9: =AA8-AD8/AG8 -> 0.4556184954 | AB9: 99.99999323 | AC9: =$K$23 -> 100 | AD9: =AB9-AC9 -> -6.774985039e-06 | AE9: -27.23538514 | AF9: 0 | AG9: =AE9-AF9 -> -27.23538514
S10: 0.2566232797 | T10: 100.0000026 | U10: 100 | V10: 2.641779588e-06 | W10: -36.17763035 | X10: 0 | Y10: -36.17763035 | AA10: 0.4556182466 | AB10: 100 | AC10: 100 | AD10: -6.679101716e-13 | AE10: -27.23537977 | AF10: 0 | AG10: -27.23537977
S11: =S10-V10/Y10 -> 0.2566233527 | T11: =$S$3*S11^5+$T$3*S11^4+$U$3*S11^3+$V$3*S11^2+$W$3*S11+$X$3 -> 100 | U11: =$K$23 -> 100 | V11: =T11-U11 -> 0 | W11: =$T$4*S11^4+$U$4*S11^3+$V$4*S11^2+$W$4*S11+$X$4 -> -36.17762778 | X11: 0 | Y11: =W11-X11 -> -36.17762778 | AA11: =AA10-AD10/AG10 -> 0.4556182466 | AB11: 100 | AC11: =$K$23 -> 100 | AD11: =AB11-AC11 -> 0 | AE11: -27.23537977 | AF11: 0 | AG11: =AE11-AF11 -> -27.23537977
A12: Kelvin | B12: mm Hg
A13: T | B13: P1 | C13: P2 | D13: K1 | E13: K2 | F13: x1 | G13: y1
A14: =MIN(B9:C9) -> 80.099595 | B14: =10^($B$6-$B$7/($B$8+A14)) -> 760 | C14: =10^($C$6-$C$7/($C$8+A14)) -> 292.3060822 | D14: =B14/$B$2 -> 1 | E14: =C14/$B$2 -> 0.384613266 | F14: =(1-E14)/(D14-E14) -> 1 | G14: =D14*F14 -> 1
A15: =(ROW()-14)*(MAX($B$9:$C$9)-MIN($B$9:$C$9))/48+MIN($B$9:$C$9) -> 80.73531856 | B15: =10^($B$6-$B$7/($B$8+A15)) -> 774.9806101 | C15: =10^($C$6-$C$7/($C$8+A15)) -> 298.7751335 | D15: =B15/$B$2 -> 1.019711329 | E15: =C15/$B$2 -> 0.3931251756 | F15: =(1-E15)/(D15-E15) -> 0.9685417097 | G15: =D15*F15 -> 0.9876329541
A16: =(ROW()-14)*(MAX($B$9:$C$9)-MIN($B$9:$C$9))/48+MIN($B$9:$C$9) -> 81.37104212 | B16: 790.1912508 | C16: 305.3590743 | D16: 1.03972533 | E16: 0.4017882557 | F16: 0.9377284506 | G16: 0.9749800228
A17: 82.00676568 | B17: 805.6343215 | C17: 312.0593868 | D17: 1.06004516 | E17: 0.4106044563 | F17: 0.907543276 | G17: 0.9620368571
A18: 82.64248924 | B18: 821.3122314 | C18: 318.8775632 | D18: 1.080673989 | E18: 0.4195757411 | F18: 0.8779697435 | G18: 0.9487990647 | I18: =I23 -> 0.4 | J18: 0 | K18: x | L18: y
A19: 83.27821281 | B19: 837.2273997 | C19: 325.8151063 | D19: 1.101615 | E19: 0.4287040873 | F19: 0.8489918982 | G19: 0.9352622095
A20: 83.91393637 | B20: 853.3822549 | C20: 332.873529 | D20: 1.122871388 | E20: 0.4379914855 | F20: 0.8205942566 | G20: 0.921421812
A21: 84.54965993 | B21: 869.7792354 | C21: 340.0543545 | D21: 1.144446362 | E21: 0.4474399402 | F21: 0.7927617914 | G21: 0.9072733483
A22: 85.18538349 | B22: 886.4207888 | C22: 347.3591163 | D22: 1.166343143 | E22: 0.4570514689 | F22: 0.7654799158 | G22: 0.892812251 | I22: z1 | J22: y1 @ z1 (drawing) | K22: T | L22: x(x1) | M22: x(y1) | N22: V | O22: L | P22: Ψ | Q22: Ψ-desired | R22: Δψ
A23: 85.82110705 | B23: 903.3093724 | C23: 354.7893581 | D23: 1.188564964 | E23: 0.4668281027 | F23: 0.7387344698 | G23: 0.8780339082 | I23: 0.4 | J23: =AA3*I23^5+AB3*I23^4+AC3*I23^3+AD3*I23^2+AE3*I23+AF3 -> 101.4824056 | K23: 100 | L23: =$S$11 -> 0.2566233527 | M23: =$AA$11 -> 0.4556182466 | N23: =I23-L23 -> 0.1433766473 | O23: =M23-I23 -> 0.05561824662 | P23: =N23/(N23+O23) -> 0.720504152 | Q23: 0.5 | R23: =P23-Q23 -> 0.220504152
A24: 86.45683061 | B24: 920.4474522 | C24: 362.3466335 | D24: 1.211115069 | E24: 0.4767718862 | F24: 0.712511706 | G24: 0.8629336638
A25: 87.09255418 | B25: 937.8375039 | C25: 370.0325066 | D25: 1.233996716 | E25: 0.4868848771 | F25: 0.6867982762 | G25: 0.8475068172 | I25: If finding Ψ at T, simple change T. Answer is Ψ.
A26: 87.72827774 | B26: 955.4820119 | C26: 377.8485513 | D26: 1.257213174 | E26: 0.4971691464 | F26: 0.6615812185 | G26: 0.8317486233 | I26: If finding T at Ψ, use solver. Enter Ψ-desired, manipulate T until ΔΨ=0. Answer is T
A27: 88.3640013 | B27: 973.3834694 | C27: 385.7963517 | D27: 1.280767723 | E27: 0.5076267785 | F27: 0.6368479448 | G27: 0.8156542921
A28: 88.99972486 | B28: 991.5443788 | C28: 393.8775017 | D28: 1.304663656 | E28: 0.5182598707 | F28: 0.6125862288 | G28: 0.799218989
A29: 89.63544842 | B29: 1009.967251 | C29: 402.0936055 | D29: 1.328904277 | E29: 0.5290705335 | F29: 0.5887841943 | G29: 0.7824378343
A30: 90.27117198 | B30: 1028.654605 | C30: 410.4462769 | D30: 1.353492901 | E30: 0.5400608907 | F30: 0.5654303044 | G30: 0.7653059031
A31: 90.90689555 | B31: 1047.608969 | C31: 418.9371398 | D31: 1.378432854 | E31: 0.5512330787 | F31: 0.5425133502 | G31: 0.7478182255
A32: 91.54261911 | B32: 1066.832879 | C32: 427.5678278 | D32: 1.403727473 | E32: 0.5625892472 | F32: 0.5200224405 | G32: 0.7299697861
A33: 92.17834267 | B33: 1086.32888 | C33: 436.3399845 | D33: 1.429380106 | E33: 0.5741315585 | F33: 0.497946992 | G33: 0.7117555241
A34: 92.81406623 | B34: 1106.099525 | C34: 445.255263 | D34: 1.455394111 | E34: 0.5858621881 | F34: 0.4762767195 | G34: 0.6931703329
A35: 93.44978979 | B35: 1126.147373 | C35: 454.3153262 | D35: 1.481772859 | E35: 0.5977833239 | F35: 0.4550016262 | G35: 0.6742090606
A36: 94.08551336 | B36: 1146.474994 | C36: 463.5218468 | D36: 1.508519729 | E36: 0.6098971668 | F36: 0.4341119951 | G36: 0.6548665091
A37: 94.72123692 | B37: 1167.084963 | C37: 472.876507 | D37: 1.53563811 | E37: 0.6222059302 | F37: 0.4135983801 | G37: 0.6351374346
A38: 95.35696048 | B38: 1187.979866 | C38: 482.3809986 | D38: 1.563131402 | E38: 0.6347118402 | F38: 0.3934515974 | G38: 0.6150165472
A39: 95.99268404 | B39: 1209.162293 | C39: 492.0370229 | D39: 1.591003017 | E39: 0.6474171354 | F39: 0.3736627176 | G39: 0.5944985108
A40: 96.6284076 | B40: 1230.634843 | C40: 501.8462908 | D40: 1.619256372 | E40: 0.6603240668 | F40: 0.3542230577 | G40: 0.5735779432
A41: 97.26413116 | B41: 1252.400122 | C41: 511.8105224 | D41: 1.647894898 | E41: 0.6734348979 | F41: 0.3351241736 | G41: 0.5522494157
A42: 97.89985473 | B42: 1274.460745 | C42: 521.9314474 | D42: 1.676922033 | E42: 0.6867519045 | F42: 0.3163578526 | G42: 0.5305074533
A43: 98.53557829 | B43: 1296.819331 | C43: 532.2108048 | D43: 1.706341225 | E43: 0.7002773748 | F43: 0.2979161065 | G43: 0.5083465342
A44: 99.17130185 | B44: 1319.478509 | C44: 542.6503428 | D44: 1.736155933 | E44: 0.7140136089 | F44: 0.2797911646 | G44: 0.4857610903
A45: 99.80702541 | B45: 1342.440912 | C45: 553.2518188 | D45: 1.766369621 | E45: 0.7279629194 | F45: 0.261975467 | G45: 0.4627455064
A46: 100.442749 | B46: 1365.709182 | C46: 564.0169994 | D46: 1.796985766 | E46: 0.7421276308 | F46: 0.2444616586 | G46: 0.4392941207
A47: 101.0784725 | B47: 1389.285966 | C47: 574.9476605 | D47: 1.828007851 | E47: 0.7565100795 | F47: 0.2272425823 | G47: 0.4154012245
A48: 101.7141961 | B48: 1413.17392 | C48: 586.0455867 | D48: 1.859439368 | E48: 0.7711126141 | F48: 0.2103112737 | G48: 0.3910610619
A49: 102.3499197 | B49: 1437.375703 | C49: 597.3125721 | D49: 1.89128382 | E49: 0.7859375948 | F49: 0.1936609547 | G49: 0.3662678301
A50: 102.9856432 | B50: 1461.893982 | C50: 608.7504193 | D50: 1.923544713 | E50: 0.8009873938 | F50: 0.1772850283 | G50: 0.341015679
A51: 103.6213668 | B51: 1486.731431 | C51: 620.36094 | D51: 1.956225567 | E51: 0.8162643947 | F51: 0.1611770731 | G51: 0.3152987113
A52: 104.2570903 | B52: 1511.890729 | C52: 632.1459548 | D52: 1.989329906 | E52: 0.8317709931 | F52: 0.145330838 | G52: 0.2891109823
A53: 104.8928139 | B53: 1537.37456 | C53: 644.107293 | D53: 2.022861263 | E53: 0.847509596 | F53: 0.1297402372 | G53: 0.2624465
A54: 105.5285375 | B54: 1563.185615 | C54: 656.2467926 | D54: 2.056823178 | E54: 0.8634826218 | F54: 0.1143993452 | G54: 0.2352992247
A55: 106.164261 | B55: 1589.326592 | C55: 668.5663003 | D55: 2.0912192 | E55: 0.8796925004 | F55: 0.09930239229 | G55: 0.2076630693
A56: 106.7999846 | B56: 1615.800191 | C56: 681.0676716 | D56: 2.126052883 | E56: 0.8961416731 | F56: 0.08444375987 | G56: 0.1795318992
A57: 107.4357082 | B57: 1642.609121 | C57: 693.7527701 | D57: 2.161327791 | E57: 0.9128325923 | F57: 0.0698179759 | G57: 0.1508995316
A58: 108.0714317 | B58: 1669.756095 | C58: 706.6234684 | D58: 2.197047493 | E58: 0.9297677216 | F58: 0.05541971075 | G58: 0.1217597366
A59: 108.7071553 | B59: 1697.243829 | C59: 719.6816473 | D59: 2.233215565 | E59: 0.9469495359 | F59: 0.04124377301 | G59: 0.09210623583
A60: 109.3428788 | B60: 1725.075048 | C60: 732.9291958 | D60: 2.269835589 | E60: 0.9643805208 | F60: 0.02728510547 | G60: 0.06193270346
A61: 109.9786024 | B61: 1753.252479 | C61: 746.3680115 | D61: 2.306911157 | E61: 0.982063173 | F61: 0.01353878124 | G61: 0.0312327655
A62: 110.614326 | B62: 1781.778855 | C62: 760 | D62: 2.344445862 | E62: 1 | F62: -8.257848498e-16 | G62: -1.936007874e-15

Sheet DePriester Charts
U11: =1394/0.031/1 -> 44967.74194
U12: 6.9
U13: 144.3
U14: 536
U15: 5
U16: 10.3
U17: =SUM(U12:U16) -> 702.5
U18: 1943
U19: =U18/2/U17 -> 1.382918149
